[Event "Titled Tuesday Blitz January 31 Early 2023"]
[White "Heinemann, Josefine"]
[Black "Sharapov, Evgeny"]
[WhiteFideId "12900460"]
[BlackFideId "14103133"]
[WhiteElo "2289"]
[BlackElo "2375"]
[Result "0-1"]
[Round "10"]
[TimeControl "180+2"]
[Date "2023.01.31"]
[WhiteClock "0:00:44"]
[BlackClock "0:00:37"]

1. d4 {[%clk 0:03:00]}  Nf6 {[%clk 0:02:59]} 2. c4 {[%clk 0:03:00]}  e6 {[%clk 0:02:59]} 3. Nf3 {[%clk 0:02:58]}  Bb4+ {[%clk 0:02:59]} 4. Nbd2 {[%clk 0:02:56]}  O-O {[%clk 0:02:58]} 5. a3 {[%clk 0:02:56]}  Bxd2+ {[%clk 0:02:58]} 6. Bxd2 {[%clk 0:02:55]}  b6 {[%clk 0:02:58]} 7. g3 {[%clk 0:02:48]}  Bb7 {[%clk 0:02:58]} 8. Bg2 {[%clk 0:02:47]}  d6 {[%clk 0:02:58]} 9. O-O {[%clk 0:02:47]}  Nbd7 {[%clk 0:02:57]} 10. Bc3 {[%clk 0:02:46]}  Ne4 {[%clk 0:02:54]} 11. Rc1 {[%clk 0:02:46]}  Nxc3 {[%clk 0:02:54]} 12. Rxc3 {[%clk 0:02:45]}  Qe7 {[%clk 0:02:52]} 13. Qc2 {[%clk 0:02:41]}  Nf6 {[%clk 0:02:48]} 14. h4 {[%clk 0:02:35]}  Be4 {[%clk 0:02:46]} 15. Qc1 {[%clk 0:02:35]}  c5 {[%clk 0:02:45]} 16. dxc5 {[%clk 0:02:33]}  dxc5 {[%clk 0:02:45]} 17. Rd1 {[%clk 0:02:32]}  Rad8 {[%clk 0:02:45]} 18. Ne5 {[%clk 0:02:28]}  Bxg2 {[%clk 0:02:40]} 19. Kxg2 {[%clk 0:02:26]}  Qc7 {[%clk 0:02:36]} 20. Nf3 {[%clk 0:02:22]}  Rxd1 {[%clk 0:02:30]} 21. Qxd1 {[%clk 0:02:22]}  Rd8 {[%clk 0:02:30]} 22. Rd3 {[%clk 0:02:22]}  Rxd3 {[%clk 0:02:28]} 23. Qxd3 {[%clk 0:02:23]}  Qd7 {[%clk 0:02:27]} 24. Ne5 {[%clk 0:02:16]}  Qxd3 {[%clk 0:02:26]} 25. exd3 {[%clk 0:02:17]}  Kf8 {[%clk 0:02:16]} 26. Nc6 {[%clk 0:02:04]}  a5 {[%clk 0:02:14]} 27. Ne5 {[%clk 0:02:01]}  Ke7 {[%clk 0:02:12]} 28. b3 {[%clk 0:01:59]}  Ne8 {[%clk 0:02:09]} 29. d4 {[%clk 0:01:53]}  cxd4 {[%clk 0:02:04]} 30. Nc6+ {[%clk 0:01:53]}  Kd6 {[%clk 0:02:04]} 31. Nxd4 {[%clk 0:01:53]}  Kc5 {[%clk 0:02:00]} 32. Nf3 {[%clk 0:01:48]}  a4 {[%clk 0:01:55]} 33. bxa4 {[%clk 0:01:47]}  Kxc4 {[%clk 0:01:55]} 34. Ne5+ {[%clk 0:01:47]}  Kb3 {[%clk 0:01:55]} 35. Nxf7 {[%clk 0:01:47]}  Kxa4 {[%clk 0:01:51]} 36. Ng5 {[%clk 0:01:47]}  Kxa3 {[%clk 0:01:50]} 37. Nxh7 {[%clk 0:01:44]}  b5 {[%clk 0:01:49]} 38. Ng5 {[%clk 0:01:44]}  b4 {[%clk 0:01:50]} 39. Ne4 {[%clk 0:01:11]}  b3 {[%clk 0:01:49]} 40. Nd2 {[%clk 0:01:12]}  b2 {[%clk 0:01:44]} 41. g4 {[%clk 0:01:12]}  Nd6 {[%clk 0:01:40]} 42. Kf3 {[%clk 0:01:09]}  Ka2 {[%clk 0:01:35]} 43. h5 {[%clk 0:01:07]}  Nc4 {[%clk 0:01:34]} 44. Nxc4 {[%clk 0:01:04]}  b1=Q {[%clk 0:01:34]} 45. Ne3 {[%clk 0:01:04]}  Kb3 {[%clk 0:01:25]} 46. g5 {[%clk 0:01:00]}  Qh1+ {[%clk 0:01:20]} 47. Kg4 {[%clk 0:00:59]}  Qe4+ {[%clk 0:01:16]} 48. Kg3 {[%clk 0:00:58]}  Kc3 {[%clk 0:01:11]} 49. Ng4 {[%clk 0:00:52]}  Kd2 {[%clk 0:01:00]} 50. f3 {[%clk 0:00:51]}  Qf5 {[%clk 0:00:53]} 51. f4 {[%clk 0:00:46]}  Ke2 {[%clk 0:00:50]} 52. h6 {[%clk 0:00:46]}  gxh6 {[%clk 0:00:50]} 53. gxh6 {[%clk 0:00:44]}  Qh5 {[%clk 0:00:37]} 0-1


[Site "https://www.chess.com"]

[Event "Titled Tuesday Blitz January 31 Early 2023"]
[White "Berezin, Viktor"]
[Black "Buscar, Michael"]
[WhiteFideId "14107872"]
[BlackFideId "2603616"]
[WhiteElo "2307"]
[BlackElo "2041"]
[Result "1-0"]
[Round "10"]
[TimeControl "180+2"]
[Date "2023.01.31"]
[WhiteClock "0:00:30"]
[BlackClock "0:01:05"]

1. d4 {[%clk 0:03:00]}  Nf6 {[%clk 0:02:59]} 2. c4 {[%clk 0:02:59]}  e6 {[%clk 0:02:59]} 3. Nf3 {[%clk 0:02:59]}  d5 {[%clk 0:02:59]} 4. g3 {[%clk 0:02:59]}  c5 {[%clk 0:02:58]} 5. Bg2 {[%clk 0:02:59]}  Nc6 {[%clk 0:02:59]} 6. cxd5 {[%clk 0:03:00]}  exd5 {[%clk 0:02:59]} 7. Nc3 {[%clk 0:03:00]}  Be7 {[%clk 0:03:00]} 8. O-O {[%clk 0:03:01]}  O-O {[%clk 0:03:01]} 9. Bg5 {[%clk 0:02:59]}  c4 {[%clk 0:03:01]} 10. Ne5 {[%clk 0:02:59]}  Be6 {[%clk 0:03:01]} 11. f4 {[%clk 0:02:59]}  Ng4 {[%clk 0:03:01]} 12. Bxe7 {[%clk 0:02:50]}  Nxe7 {[%clk 0:03:00]} 13. Qd2 {[%clk 0:02:41]}  Nxe5 {[%clk 0:02:37]} 14. fxe5 {[%clk 0:02:35]}  Rb8 {[%clk 0:02:37]} 15. e4 {[%clk 0:02:33]}  b5 {[%clk 0:02:35]} 16. exd5 {[%clk 0:02:33]}  Nxd5 {[%clk 0:02:34]} 17. Ne4 {[%clk 0:02:33]}  Qb6 {[%clk 0:02:15]} 18. Rad1 {[%clk 0:02:23]}  Rfc8 {[%clk 0:02:12]} 19. Qg5 {[%clk 0:02:14]}  h6 {[%clk 0:01:54]} 20. Qd2 {[%clk 0:01:47]}  b4 {[%clk 0:01:51]} 21. Nd6 {[%clk 0:01:43]}  Rc6 {[%clk 0:01:39]} 22. Nxf7 {[%clk 0:01:21]}  Bxf7 {[%clk 0:01:37]} 23. Rxf7 {[%clk 0:01:20]}  Kxf7 {[%clk 0:01:27]} 24. Bxd5+ {[%clk 0:01:20]}  Ke8 {[%clk 0:01:25]} 25. Qf2 {[%clk 0:00:58]}  Rc7 {[%clk 0:01:23]} 26. Rf1 {[%clk 0:00:57]}  Re7 {[%clk 0:01:16]} 27. e6 {[%clk 0:00:46]}  Kd8 {[%clk 0:01:09]} 28. Qf8+ {[%clk 0:00:35]}  Re8 {[%clk 0:01:09]} 29. Qxg7 {[%clk 0:00:31]}  c3 {[%clk 0:01:05]} 30. Qd7# {[%clk 0:00:30]} 1-0


[Site "https://www.chess.com"]

[Event "Titled Tuesday Blitz January 31 Early 2023"]
[White "Sowul, Bartosz"]
[Black "Rangel, Daniel"]
[WhiteFideId "1137590"]
[BlackFideId "2124475"]
[WhiteElo "2269"]
[BlackElo "2207"]
[Result "0-1"]
[Round "10"]
[TimeControl "180+2"]
[Date "2023.01.31"]
[WhiteClock "0:00:17"]
[BlackClock "0:00:08"]

1. e4 {[%clk 0:03:00]}  c6 {[%clk 0:02:57]} 2. d4 {[%clk 0:03:00]}  d5 {[%clk 0:02:57]} 3. e5 {[%clk 0:03:01]}  c5 {[%clk 0:02:58]} 4. Nf3 {[%clk 0:03:01]}  cxd4 {[%clk 0:02:58]} 5. Nxd4 {[%clk 0:02:53]}  Nc6 {[%clk 0:02:57]} 6. f4 {[%clk 0:02:53]}  Qb6 {[%clk 0:02:40]} 7. Bb5 {[%clk 0:02:44]}  Bd7 {[%clk 0:02:39]} 8. Bxc6 {[%clk 0:02:43]}  Bxc6 {[%clk 0:02:39]} 9. c3 {[%clk 0:02:42]}  e6 {[%clk 0:02:38]} 10. Nd2 {[%clk 0:02:40]}  a5 {[%clk 0:02:31]} 11. a4 {[%clk 0:02:31]}  Bc5 {[%clk 0:02:05]} 12. N2b3 {[%clk 0:02:20]}  Ne7 {[%clk 0:02:04]} 13. Nxc5 {[%clk 0:02:17]}  Qxc5 {[%clk 0:02:05]} 14. Be3 {[%clk 0:02:16]}  Qc4 {[%clk 0:01:56]} 15. Kf2 {[%clk 0:01:52]}  g6 {[%clk 0:01:43]} 16. Qc2 {[%clk 0:01:32]}  Nf5 {[%clk 0:01:39]} 17. b3 {[%clk 0:01:22]}  Qa6 {[%clk 0:01:24]} 18. g4 {[%clk 0:01:14]}  Nxe3 {[%clk 0:01:16]} 19. Kxe3 {[%clk 0:01:13]}  h5 {[%clk 0:01:17]} 20. h3 {[%clk 0:01:09]}  Rc8 {[%clk 0:01:09]} 21. f5 {[%clk 0:01:08]}  gxf5 {[%clk 0:01:02]} 22. gxf5 {[%clk 0:01:08]}  exf5 {[%clk 0:01:01]} 23. Raf1 {[%clk 0:00:45]}  Bd7 {[%clk 0:00:55]} 24. Nxf5 {[%clk 0:00:39]}  Bxf5 {[%clk 0:00:31]} 25. Rxf5 {[%clk 0:00:39]}  d4+ {[%clk 0:00:22]} 26. Kxd4 {[%clk 0:00:31]}  Qb6+ {[%clk 0:00:11]} 27. Kd3 {[%clk 0:00:27]}  Rg8 {[%clk 0:00:11]} 28. Rh2 {[%clk 0:00:21]}  Rg3+ {[%clk 0:00:09]} 29. Kd2 {[%clk 0:00:20]}  Qe3+ {[%clk 0:00:08]} 30. Kd1 {[%clk 0:00:18]}  Rg1+ {[%clk 0:00:08]} 31. Rf1 {[%clk 0:00:17]}  Rxf1# {[%clk 0:00:08]} 0-1


[Site "https://www.chess.com"]

[Event "Titled Tuesday Blitz January 31 Early 2023"]
[White "Lopez Idarraga, Daniel Eduardo"]
[Black "Matt, Fabian"]
[WhiteFideId "4405501"]
[BlackFideId "1623303"]
[WhiteElo "2009"]
[BlackElo "2308"]
[Result "1/2-1/2"]
[Round "10"]
[TimeControl "180+2"]
[Date "2023.01.31"]
[WhiteClock "0:00:39"]
[BlackClock "0:00:12"]

1. Nf3 {[%clk 0:03:00]}  Nf6 {[%clk 0:02:59]} 2. b3 {[%clk 0:03:01]}  d5 {[%clk 0:02:54]} 3. Bb2 {[%clk 0:03:02]}  e6 {[%clk 0:02:55]} 4. g3 {[%clk 0:03:00]}  Be7 {[%clk 0:02:55]} 5. Bg2 {[%clk 0:03:01]}  O-O {[%clk 0:02:55]} 6. O-O {[%clk 0:03:02]}  b6 {[%clk 0:02:56]} 7. d3 {[%clk 0:03:02]}  Bb7 {[%clk 0:02:56]} 8. e4 {[%clk 0:03:02]}  dxe4 {[%clk 0:02:53]} 9. Ng5 {[%clk 0:03:02]}  Nbd7 {[%clk 0:02:51]} 10. Nd2 {[%clk 0:03:01]}  Qc8 {[%clk 0:02:43]} 11. Ndxe4 {[%clk 0:02:59]}  Nxe4 {[%clk 0:02:36]} 12. Nxe4 {[%clk 0:02:56]}  f5 {[%clk 0:02:28]} 13. Nd2 {[%clk 0:02:51]}  Bxg2 {[%clk 0:02:29]} 14. Kxg2 {[%clk 0:02:52]}  Qb7+ {[%clk 0:02:28]} 15. Qf3 {[%clk 0:02:52]}  Qxf3+ {[%clk 0:02:25]} 16. Nxf3 {[%clk 0:02:53]}  Bf6 {[%clk 0:02:23]} 17. Bxf6 {[%clk 0:02:52]}  gxf6 {[%clk 0:02:24]} 18. d4 {[%clk 0:02:50]}  c5 {[%clk 0:02:21]} 19. Rad1 {[%clk 0:02:47]}  Rad8 {[%clk 0:02:19]} 20. Rfe1 {[%clk 0:02:45]}  Kf7 {[%clk 0:02:14]} 21. c4 {[%clk 0:02:36]}  cxd4 {[%clk 0:02:03]} 22. Nxd4 {[%clk 0:02:35]}  Ne5 {[%clk 0:01:56]} 23. h3 {[%clk 0:02:24]}  Rd6 {[%clk 0:01:50]} 24. f4 {[%clk 0:02:21]}  Rfd8 {[%clk 0:01:48]} 25. fxe5 {[%clk 0:02:18]}  Rxd4 {[%clk 0:01:48]} 26. Rxd4 {[%clk 0:02:14]}  Rxd4 {[%clk 0:01:49]} 27. exf6 {[%clk 0:02:13]}  Rd2+ {[%clk 0:01:46]} 28. Kf3 {[%clk 0:02:13]}  Rxa2 {[%clk 0:01:46]} 29. Rd1 {[%clk 0:02:09]}  Kxf6 {[%clk 0:01:41]} 30. Rd7 {[%clk 0:02:01]}  Ra3 {[%clk 0:01:36]} 31. Kf2 {[%clk 0:01:39]}  Rxb3 {[%clk 0:01:29]} 32. Rxa7 {[%clk 0:01:38]}  e5 {[%clk 0:01:19]} 33. Rxh7 {[%clk 0:01:36]}  e4 {[%clk 0:01:19]} 34. Rc7 {[%clk 0:01:32]}  Ke5 {[%clk 0:01:14]} 35. Re7+ {[%clk 0:01:26]}  Kd4 {[%clk 0:01:13]} 36. Rd7+ {[%clk 0:01:22]}  Kxc4 {[%clk 0:01:13]} 37. Rf7 {[%clk 0:01:22]}  Rf3+ {[%clk 0:01:08]} 38. Kg2 {[%clk 0:01:20]}  b5 {[%clk 0:01:08]} 39. h4 {[%clk 0:01:20]}  Kd5 {[%clk 0:01:01]} 40. h5 {[%clk 0:01:17]}  Ke6 {[%clk 0:01:01]} 41. Rb7 {[%clk 0:01:14]}  Rd3 {[%clk 0:00:44]} 42. Rxb5 {[%clk 0:01:13]}  Kf6 {[%clk 0:00:43]} 43. h6 {[%clk 0:01:03]}  Kg6 {[%clk 0:00:40]} 44. Rb6+ {[%clk 0:01:03]}  Kh7 {[%clk 0:00:41]} 45. Rf6 {[%clk 0:01:03]}  Rd2+ {[%clk 0:00:35]} 46. Kh3 {[%clk 0:00:59]}  Rd5 {[%clk 0:00:36]} 47. Re6 {[%clk 0:00:57]}  Rd2 {[%clk 0:00:28]} 48. Kh4 {[%clk 0:00:56]}  Rd3 {[%clk 0:00:18]} 49. Rf6 {[%clk 0:00:48]}  Rf3 {[%clk 0:00:17]} 50. Re6 {[%clk 0:00:45]}  e3 {[%clk 0:00:17]} 51. Kg5 {[%clk 0:00:37]}  Rxg3+ {[%clk 0:00:16]} 52. Kxf5 {[%clk 0:00:38]}  Rh3 {[%clk 0:00:15]} 53. Kg4 {[%clk 0:00:37]}  Rxh6 {[%clk 0:00:13]} 54. Rxh6+ {[%clk 0:00:38]}  Kxh6 {[%clk 0:00:12]} 55. Kf3 {[%clk 0:00:39]}  Kg5 {[%clk 0:00:12]} 56. Kxe3 {[%clk 0:00:39]} 1/2-1/2


[Site "https://www.chess.com"]

[Event "Titled Tuesday Blitz January 31 Early 2023"]
[White "Ramirez Allo, Eduardo"]
[Black "rikchessmx"]
[WhiteFideId "2224178"]
[WhiteElo "2274"]
[BlackElo "2329"]
[Result "1-0"]
[Round "10"]
[TimeControl "180+2"]
[Date "2023.01.31"]
[WhiteClock "0:00:04"]
[BlackClock "0:00:04"]

1. d4 {[%clk 0:02:59]}  Nf6 {[%clk 0:02:59]} 2. c4 {[%clk 0:02:59]}  e6 {[%clk 0:02:58]} 3. Nf3 {[%clk 0:03:00]}  c5 {[%clk 0:02:47]} 4. g3 {[%clk 0:02:59]}  cxd4 {[%clk 0:02:45]} 5. Nxd4 {[%clk 0:03:00]}  a6 {[%clk 0:02:45]} 6. Bg2 {[%clk 0:03:00]}  Qc7 {[%clk 0:02:46]} 7. b3 {[%clk 0:03:00]}  Be7 {[%clk 0:02:44]} 8. O-O {[%clk 0:03:00]}  O-O {[%clk 0:02:44]} 9. Bb2 {[%clk 0:03:00]}  Nc6 {[%clk 0:02:43]} 10. Nc3 {[%clk 0:03:01]}  Rb8 {[%clk 0:02:42]} 11. Rc1 {[%clk 0:03:00]}  Ne5 {[%clk 0:02:40]} 12. Ndb5 {[%clk 0:02:31]}  axb5 {[%clk 0:02:32]} 13. Nxb5 {[%clk 0:02:32]}  Qa5 {[%clk 0:02:30]} 14. Bxe5 {[%clk 0:02:32]}  d6 {[%clk 0:02:30]} 15. Bxd6 {[%clk 0:02:18]}  Rd8 {[%clk 0:02:28]} 16. Bxb8 {[%clk 0:02:19]}  Rxd1 {[%clk 0:02:26]} 17. Rfxd1 {[%clk 0:02:20]}  Bd7 {[%clk 0:02:22]} 18. a4 {[%clk 0:02:12]}  h5 {[%clk 0:02:19]} 19. Bd6 {[%clk 0:02:12]}  Bxb5 {[%clk 0:02:12]} 20. axb5 {[%clk 0:02:13]}  Bxd6 {[%clk 0:02:11]} 21. Rxd6 {[%clk 0:02:13]}  Qb4 {[%clk 0:02:11]} 22. Rd8+ {[%clk 0:02:06]}  Kh7 {[%clk 0:02:10]} 23. Rd3 {[%clk 0:01:45]}  b6 {[%clk 0:02:09]} 24. Rcd1 {[%clk 0:01:41]}  Ng4 {[%clk 0:02:06]} 25. h3 {[%clk 0:01:35]}  Ne5 {[%clk 0:02:06]} 26. Re3 {[%clk 0:01:32]}  f6 {[%clk 0:02:04]} 27. f4 {[%clk 0:01:18]}  Ng6 {[%clk 0:02:04]} 28. Rxe6 {[%clk 0:01:04]}  Qxb3 {[%clk 0:02:00]} 29. Rd7 {[%clk 0:00:50]}  Qxg3 {[%clk 0:01:55]} 30. Rd3 {[%clk 0:00:34]}  Qxf4 {[%clk 0:01:48]} 31. Rxb6 {[%clk 0:00:34]}  Nh4 {[%clk 0:01:44]} 32. Bd5 {[%clk 0:00:18]}  Qg5+ {[%clk 0:01:36]} 33. Kf2 {[%clk 0:00:17]}  Qf4+ {[%clk 0:01:30]} 34. Ke1 {[%clk 0:00:17]}  Qc1+ {[%clk 0:01:30]} 35. Kf2 {[%clk 0:00:16]}  Nf5 {[%clk 0:01:18]} 36. Re6 {[%clk 0:00:11]}  Qf4+ {[%clk 0:01:17]} 37. Ke1 {[%clk 0:00:11]}  Nd4 {[%clk 0:01:10]} 38. Be4+ {[%clk 0:00:10]}  f5 {[%clk 0:01:07]} 39. Rxd4 {[%clk 0:00:10]}  Qg3+ {[%clk 0:01:04]} 40. Kd2 {[%clk 0:00:08]}  Qf4+ {[%clk 0:01:04]} 41. Kd3 {[%clk 0:00:07]}  fxe4+ {[%clk 0:01:02]} 42. Rdxe4 {[%clk 0:00:08]}  Qf1 {[%clk 0:01:00]} 43. b6 {[%clk 0:00:08]}  Qd1+ {[%clk 0:00:59]} 44. Kc3 {[%clk 0:00:08]}  Qc1+ {[%clk 0:00:59]} 45. Kb4 {[%clk 0:00:09]}  Qb2+ {[%clk 0:00:59]} 46. Kc5 {[%clk 0:00:09]}  Qa3+ {[%clk 0:00:59]} 47. Kc6 {[%clk 0:00:10]}  Qa4+ {[%clk 0:00:58]} 48. Kc7 {[%clk 0:00:10]}  Qa5 {[%clk 0:00:58]} 49. c5 {[%clk 0:00:10]}  Qxc5+ {[%clk 0:00:57]} 50. Kb7 {[%clk 0:00:09]}  Qb5 {[%clk 0:00:56]} 51. R4e5 {[%clk 0:00:08]}  Qd7+ {[%clk 0:00:54]} 52. Ka6 {[%clk 0:00:07]}  Qa4+ {[%clk 0:00:54]} 53. Kb7 {[%clk 0:00:08]}  Qd7+ {[%clk 0:00:54]} 54. Ka8 {[%clk 0:00:08]}  Qc8+ {[%clk 0:00:51]} 55. Ka7 {[%clk 0:00:08]}  Qd7+ {[%clk 0:00:50]} 56. b7 {[%clk 0:00:09]}  Qa4+ {[%clk 0:00:50]} 57. Kb8 {[%clk 0:00:09]}  Qc4 {[%clk 0:00:43]} 58. Rxh5+ {[%clk 0:00:08]}  Kg8 {[%clk 0:00:44]} 59. Rhe5 {[%clk 0:00:08]}  Kf7 {[%clk 0:00:41]} 60. Re7+ {[%clk 0:00:07]}  Kf6 {[%clk 0:00:41]} 61. R5e6+ {[%clk 0:00:07]}  Kf5 {[%clk 0:00:41]} 62. Rd6 {[%clk 0:00:07]}  Qc5 {[%clk 0:00:37]} 63. Rdd7 {[%clk 0:00:07]}  Qb6 {[%clk 0:00:32]} 64. Rxg7 {[%clk 0:00:06]}  Kf6 {[%clk 0:00:27]} 65. Rge7 {[%clk 0:00:06]}  Qa6 {[%clk 0:00:25]} 66. e4 {[%clk 0:00:06]}  Kg6 {[%clk 0:00:25]} 67. e5 {[%clk 0:00:07]}  Qb6 {[%clk 0:00:24]} 68. e6 {[%clk 0:00:07]}  Kf6 {[%clk 0:00:24]} 69. Kc8 {[%clk 0:00:07]}  Qa6 {[%clk 0:00:20]} 70. Kd8 {[%clk 0:00:06]}  Qb6+ {[%clk 0:00:18]} 71. Ke8 {[%clk 0:00:06]}  Qb1 {[%clk 0:00:06]} 72. Rf7+ {[%clk 0:00:06]}  Kxe6 {[%clk 0:00:06]} 73. Rfe7+ {[%clk 0:00:02]}  Kf6 {[%clk 0:00:06]} 74. Rf7+ {[%clk 0:00:03]}  Ke6 {[%clk 0:00:07]} 75. Rde7+ {[%clk 0:00:04]}  Kd6 {[%clk 0:00:06]} 76. Kf8 {[%clk 0:00:04]}  Qb4 {[%clk 0:00:04]} 77. Kg8 {[%clk 0:00:04]}  Kc6 {[%clk 0:00:04]} 78. Re8 {[%clk 0:00:04]} 1-0


[Site "https://www.chess.com"]

[Event "Titled Tuesday Blitz January 31 Early 2023"]
[White "Mohammed, Zozek Salah Mohammed"]
[Black "Matveeva, Olga"]
[WhiteFideId "4803361"]
[BlackFideId "24107018"]
[WhiteElo "2210"]
[BlackElo "2128"]
[Result "0-1"]
[Round "10"]
[TimeControl "180+2"]
[Date "2023.01.31"]
[WhiteClock "0:01:12"]
[BlackClock "0:00:39"]

1. d4 {[%clk 0:02:53]}  d5 {[%clk 0:02:59]} 2. c4 {[%clk 0:02:52]}  e6 {[%clk 0:02:59]} 3. Nf3 {[%clk 0:02:53]}  Nf6 {[%clk 0:02:58]} 4. g3 {[%clk 0:02:54]}  Bb4+ {[%clk 0:02:59]} 5. Bd2 {[%clk 0:02:51]}  Be7 {[%clk 0:02:59]} 6. Bg2 {[%clk 0:02:51]}  O-O {[%clk 0:03:00]} 7. O-O {[%clk 0:02:51]}  Nbd7 {[%clk 0:02:59]} 8. Bg5 {[%clk 0:02:48]}  c6 {[%clk 0:02:58]} 9. Nbd2 {[%clk 0:02:47]}  b6 {[%clk 0:02:55]} 10. Ne5 {[%clk 0:02:44]}  Bb7 {[%clk 0:02:54]} 11. Rc1 {[%clk 0:02:42]}  Rc8 {[%clk 0:02:52]} 12. e4 {[%clk 0:02:33]}  Nxe5 {[%clk 0:02:33]} 13. dxe5 {[%clk 0:02:32]}  Nxe4 {[%clk 0:02:19]} 14. Bxe7 {[%clk 0:02:30]}  Qxe7 {[%clk 0:02:20]} 15. Nxe4 {[%clk 0:02:29]}  dxe4 {[%clk 0:02:21]} 16. Bxe4 {[%clk 0:02:29]}  c5 {[%clk 0:02:20]} 17. Qf3 {[%clk 0:02:26]}  Bxe4 {[%clk 0:02:17]} 18. Qxe4 {[%clk 0:02:27]}  Rfd8 {[%clk 0:02:17]} 19. Rfd1 {[%clk 0:02:28]}  h6 {[%clk 0:02:05]} 20. Qf4 {[%clk 0:02:16]}  Qg5 {[%clk 0:01:46]} 21. Qxg5 {[%clk 0:02:11]}  hxg5 {[%clk 0:01:47]} 22. f4 {[%clk 0:02:12]}  gxf4 {[%clk 0:01:33]} 23. gxf4 {[%clk 0:02:13]}  Kf8 {[%clk 0:01:33]} 24. Kf2 {[%clk 0:02:13]}  Ke7 {[%clk 0:01:33]} 25. Ke3 {[%clk 0:02:10]}  Rxd1 {[%clk 0:01:30]} 26. Rxd1 {[%clk 0:02:11]}  Rh8 {[%clk 0:01:30]} 27. Rd2 {[%clk 0:02:10]}  Rh3+ {[%clk 0:01:28]} 28. Ke4 {[%clk 0:02:10]}  f5+ {[%clk 0:01:21]} 29. exf6+ {[%clk 0:02:09]}  gxf6 {[%clk 0:01:22]} 30. f5 {[%clk 0:01:43]}  Rh4+ {[%clk 0:01:20]} 31. Kd3 {[%clk 0:01:43]}  exf5 {[%clk 0:01:11]} 32. Re2+ {[%clk 0:01:39]}  Kd6 {[%clk 0:01:10]} 33. b3 {[%clk 0:01:38]}  Rh3+ {[%clk 0:01:03]} 34. Kd2 {[%clk 0:01:31]}  f4 {[%clk 0:01:03]} 35. Ke1 {[%clk 0:01:29]}  f5 {[%clk 0:00:51]} 36. Kf1 {[%clk 0:01:18]}  f3 {[%clk 0:00:42]} 37. Re3 {[%clk 0:01:16]}  Rxh2 {[%clk 0:00:40]} 38. Rxf3 {[%clk 0:01:16]}  Ke5 {[%clk 0:00:40]} 39. Re3+ {[%clk 0:01:15]}  Kf4 {[%clk 0:00:40]} 40. Re7 {[%clk 0:01:12]}  Rxa2 {[%clk 0:00:39]} 0-1


[Site "https://www.chess.com"]

[Event "Titled Tuesday Blitz January 31 Early 2023"]
[White "Ruiz Aguilar, Pablo Alexander"]
[Black "Guliev, Logman"]
[WhiteFideId "4401352"]
[BlackFideId "13400061"]
[WhiteElo "2161"]
[BlackElo "2250"]
[Result "0-1"]
[Round "10"]
[TimeControl "180+2"]
[Date "2023.01.31"]
[WhiteClock "0:00:07"]
[BlackClock "0:00:36"]

1. e4 {[%clk 0:03:00]}  e5 {[%clk 0:02:59]} 2. Nf3 {[%clk 0:03:00]}  Nc6 {[%clk 0:02:59]} 3. Bb5 {[%clk 0:02:59]}  a6 {[%clk 0:02:58]} 4. Ba4 {[%clk 0:03:00]}  Nf6 {[%clk 0:02:58]} 5. d3 {[%clk 0:03:00]}  b5 {[%clk 0:02:56]} 6. Bb3 {[%clk 0:02:59]}  Bc5 {[%clk 0:02:56]} 7. O-O {[%clk 0:02:57]}  h6 {[%clk 0:02:56]} 8. Nxe5 {[%clk 0:02:55]}  Nxe5 {[%clk 0:02:55]} 9. d4 {[%clk 0:02:55]}  Bxd4 {[%clk 0:02:36]} 10. Qxd4 {[%clk 0:02:54]}  d6 {[%clk 0:02:37]} 11. c3 {[%clk 0:02:52]}  O-O {[%clk 0:02:37]} 12. Bf4 {[%clk 0:02:50]}  Ng6 {[%clk 0:02:30]} 13. Bg3 {[%clk 0:02:50]}  Bb7 {[%clk 0:02:29]} 14. Re1 {[%clk 0:02:48]}  Re8 {[%clk 0:02:29]} 15. Nd2 {[%clk 0:02:44]}  Nh5 {[%clk 0:02:23]} 16. Bd5 {[%clk 0:02:33]}  c6 {[%clk 0:02:15]} 17. Bb3 {[%clk 0:02:29]}  Nhf4 {[%clk 0:02:10]} 18. Qe3 {[%clk 0:02:12]}  Qf6 {[%clk 0:01:55]} 19. Qf3 {[%clk 0:02:08]}  c5 {[%clk 0:01:48]} 20. Bd5 {[%clk 0:02:05]}  Nxd5 {[%clk 0:01:44]} 21. exd5 {[%clk 0:02:00]}  Qxf3 {[%clk 0:01:43]} 22. Nxf3 {[%clk 0:02:00]}  Bxd5 {[%clk 0:01:44]} 23. Bxd6 {[%clk 0:01:59]}  Bxf3 {[%clk 0:01:44]} 24. gxf3 {[%clk 0:01:59]}  c4 {[%clk 0:01:45]} 25. Re4 {[%clk 0:01:53]}  f6 {[%clk 0:01:42]} 26. Rae1 {[%clk 0:01:51]}  Kf7 {[%clk 0:01:40]} 27. Kf1 {[%clk 0:01:45]}  Rxe4 {[%clk 0:01:33]} 28. fxe4 {[%clk 0:01:44]}  Ke6 {[%clk 0:01:32]} 29. Bc5 {[%clk 0:01:42]}  Nf4 {[%clk 0:01:29]} 30. Bd4 {[%clk 0:01:36]}  Rd8 {[%clk 0:01:22]} 31. f3 {[%clk 0:01:30]}  h5 {[%clk 0:01:19]} 32. b3 {[%clk 0:01:25]}  b4 {[%clk 0:01:05]} 33. bxc4 {[%clk 0:01:23]}  bxc3 {[%clk 0:01:05]} 34. Be3 {[%clk 0:00:48]}  Rd3 {[%clk 0:00:56]} 35. Bxf4 {[%clk 0:00:42]}  Rxf3+ {[%clk 0:00:56]} 36. Ke2 {[%clk 0:00:43]}  Rxf4 {[%clk 0:00:57]} 37. Ke3 {[%clk 0:00:42]}  Rh4 {[%clk 0:00:56]} 38. Re2 {[%clk 0:00:41]}  Ke5 {[%clk 0:00:55]} 39. Kd3 {[%clk 0:00:39]}  Rh3+ {[%clk 0:00:55]} 40. Kc2 {[%clk 0:00:39]}  Kd4 {[%clk 0:00:55]} 41. e5 {[%clk 0:00:32]}  fxe5 {[%clk 0:00:55]} 42. c5 {[%clk 0:00:32]}  Kxc5 {[%clk 0:00:50]} 43. Rxe5+ {[%clk 0:00:32]}  Kd4 {[%clk 0:00:51]} 44. Re2 {[%clk 0:00:31]}  Rd3 {[%clk 0:00:49]} 45. Kb3 {[%clk 0:00:24]}  Rd2 {[%clk 0:00:47]} 46. Re8 {[%clk 0:00:24]}  Rb2+ {[%clk 0:00:47]} 47. Ka3 {[%clk 0:00:23]}  Rxh2 {[%clk 0:00:46]} 48. Rd8+ {[%clk 0:00:22]}  Kc4 {[%clk 0:00:46]} 49. Rc8+ {[%clk 0:00:21]}  Kd3 {[%clk 0:00:46]} 50. Rd8+ {[%clk 0:00:21]}  Kc2 {[%clk 0:00:46]} 51. Rd6 {[%clk 0:00:19]}  Rg2 {[%clk 0:00:44]} 52. Rxa6 {[%clk 0:00:18]}  h4 {[%clk 0:00:44]} 53. Ra4 {[%clk 0:00:16]}  h3 {[%clk 0:00:44]} 54. Rh4 {[%clk 0:00:16]}  h2 {[%clk 0:00:44]} 55. Rh3 {[%clk 0:00:16]}  g5 {[%clk 0:00:42]} 56. Kb4 {[%clk 0:00:15]}  Rg4+ {[%clk 0:00:38]} 57. Kb5 {[%clk 0:00:14]}  Rh4 {[%clk 0:00:38]} 58. Rxh2+ {[%clk 0:00:07]}  Rxh2 {[%clk 0:00:37]} 59. a4 {[%clk 0:00:07]}  Kb2 {[%clk 0:00:37]} 60. a5 {[%clk 0:00:08]}  c2 {[%clk 0:00:37]} 61. a6 {[%clk 0:00:09]}  c1=Q {[%clk 0:00:38]} 62. a7 {[%clk 0:00:09]}  Qc8 {[%clk 0:00:37]} 63. a8=Q {[%clk 0:00:08]}  Qxa8 {[%clk 0:00:36]} 64. Kb6 {[%clk 0:00:08]}  Qc8 {[%clk 0:00:36]} 65. Kb5 {[%clk 0:00:08]}  Rh7 {[%clk 0:00:34]} 66. Kb6 {[%clk 0:00:08]}  Rb7+ {[%clk 0:00:35]} 67. Ka6 {[%clk 0:00:07]}  Qa8# {[%clk 0:00:36]} 0-1


[Site "https://www.chess.com"]